bitfinex-derivatives/quotes_SOLF0:USTF0_20260308
["timestamp","ask_amount","ask_price","bid_price","bid_amount"]
[1772998548109,44.11431752,82.486,82.431,10.918]
[1772998548811,44.11431752,82.486,82.44,10.09661469]
[1772998549915,44.11431752,82.486,82.444,10.916]
[1772998551213,44.11431752,82.486,82.452,10.915]
[1772998551409,43.96882512,82.501,82.452,10.915]
[1772998551612,43.96882512,82.501,82.47,3.76103058]
[1772998554926,43.96882512,82.501,82.48,3.76103058]
[1772998557518,43.95762426,82.519,82.49,3.76103058]
[1772998558323,43.95762426,82.517,82.49,3.76103058]
[1772998558622,43.95762426,82.517,82.48,3.76103058]
[1772998559122,43.95762426,82.517,82.49,3.76103058]
[1772998559623,43.95762426,82.517,82.48,3.76103058]
[1772998559925,42.20720631,82.514,82.48,3.76103058]
[1772998561828,42.31118957,82.511,82.48,3.76103058]
[1772998563627,42.31118957,82.511,82.458,10.915]
[1772998563819,21.803,82.559,81.387,178.74479342]
[1772998563820,3.76103058,82.54,82.48,3.76103058]
[1772998564020,40.31513839,82.539,82.48,3.76103058]
[1772998564319,40.31513839,82.537,82.49,3.76103058]
[1772998565020,40.31445248,82.521,82.49,3.76103058]
[1772998565427,40.31445248,82.521,82.462,10.914]
[1772998565628,40.31445248,82.521,82.48,3.76103058]
[1772998565827,40.31445248,82.521,82.49,3.76103058]
[1772998567028,3.76103058,82.55,82.49,3.76103058]
[1772998567029,36.6179764,82.519,82.49,3.76103058]
[1772998567625,36.6179764,82.519,82.487,358.74850084]
[1772998567826,36.12531497,82.513,82.487,358.74850084]
[1772998568027,36.12531497,82.513,82.49,3.76103058]
[1772998571634,23.8761277,82.51,82.49,3.75963381]
[1772998573131,23.8761277,82.51,82.487,326.09484393]
[1772998573628,23.8761277,82.539,82.49,3.75963381]
[1772998573826,23.8761277,82.537,82.49,3.75963381]
[1772998574135,23.8761277,82.535,82.49,3.75963381]
[1772998574333,23.8761277,82.534,82.49,3.75963381]
[1772998574728,10.906,82.527,82.49,3.75963381]
[1772998575030,23.8761277,82.526,82.49,3.75963381]
[1772998575824,23.8761277,82.523,82.49,3.75963381]
[1772998576934,23.8761277,82.521,82.49,3.75963381]
[1772998577732,23.90699623,82.512,82.49,3.75963381]
[1772998578135,23.8761277,82.537,82.5,3.75963381]
[1772998578435,23.8761277,82.537,82.51,3.75963381]
[1772998579438,23.8761277,82.537,82.51,0.00063381]
[1772998579839,23.8761277,82.526,82.5,3.75963381]
[1772998587547,23.8761277,82.552,82.51,3.75963381]
[1772998588752,10.903,82.548,82.51,3.75963381]
[1772998588957,23.8761277,82.547,82.51,3.75963381]
[1772998589839,23.8761277,82.543,82.51,3.75963381]
[1772998590845,23.8761277,82.541,82.51,3.75963381]
[1772998591646,23.8761277,82.541,82.52,0.00063381]
[1772998596355,23.8761277,82.541,82.488,30.21483732]
[1772998596550,23.8761277,82.541,82.5,3.75963381]
[1772998597853,26.14460852,82.528,82.5,3.75963381]
[1772998598054,26.14460852,82.528,82.49,3.75963381]
[1772998598849,26.14460852,82.523,82.49,3.75963381]
[1772998599761,26.14460852,82.521,82.49,3.75963381]
[1772998600550,26.14460852,82.521,82.434,29.27017735]
[1772998600551,26.14460852,82.538,82.5,3.75963381]
[1772998600752,3.75963381,82.53,82.459,24.78845507]
[1772998600956,26.14460852,82.528,82.47,3.75963381]
[1772998601158,26.14460852,82.526,82.47,3.75963381]
[1772998601358,26.14460852,82.524,82.47,3.75963381]
[1772998601559,26.14460852,82.522,82.47,3.75963381]
[1772998601755,26.14460852,82.51,82.47,3.75963381]
[1772998602053,26.14460852,82.547,82.5,3.75963381]
[1772998602257,26.14460852,82.545,82.51,3.75963381]
[1772998602455,26.14460852,82.541,82.5,3.75963381]
[1772998602765,26.14460852,82.539,82.5,3.75963381]
[1772998603259,26.14460852,82.534,82.5,3.75963381]
[1772998603654,26.14460852,82.534,82.49,3.75963381]
[1772998604059,26.14460852,82.53,82.49,3.75963381]
[1772998605866,26.14460852,82.528,82.49,3.75963381]
[1772998607868,26.14460852,82.523,82.478,24.78845507]
[1772998608068,26.14460852,82.523,82.49,3.75963381]
[1772998609569,26.14460852,82.521,82.49,3.75963381]
[1772998610173,26.14460852,82.521,82.419,29.27017735]
[1772998610174,26.14460852,82.517,82.48,3.75963381]
[1772998612276,26.14460852,82.516,82.48,3.75963381]
[1772998613872,26.14460852,82.5,82.46,3.75963381]
[1772998614077,9.28788825,82.499,82.44,28.54808888]
[1772998614276,26.14460852,82.498,82.44,28.54808888]
[1772998614477,26.14460852,82.491,82.45,28.54808888]
[1772998615678,26.14460852,82.487,82.44,3.75963381]
[1772998616774,26.14460852,82.481,82.44,3.75963381]
[1772998617781,26.14460852,82.481,82.379,21.851]
[1772998617782,26.14460852,82.478,82.42,3.75963381]
[1772998617981,26.14460852,82.478,82.411,24.78845507]
[1772998618179,26.14460852,82.478,82.42,3.75963381]
[1772998618480,26.14460852,82.464,82.42,3.75963381]
[1772998618678,26.14460852,82.464,82.43,3.75963381]
[1772998619482,26.14460852,82.464,82.42,28.54808888]
[1772998620087,26.14460852,82.464,82.43,3.75963381]
[1772998620882,26.14460852,82.464,82.357,21.857]
[1772998620883,26.14460852,82.499,82.45,3.75963381]
[1772998621080,26.14460852,82.499,82.46,3.75963381]
[1772998621287,26.14460852,82.489,82.44,3.75963381]
[1772998621587,44.3582272,82.551,82.38,322.1302765]
[1772998621588,26.14460852,82.469,82.42,3.75963381]
[1772998622288,26.14460852,82.469,82.41,28.54808888]
[1772998622781,26.19735715,82.465,82.41,28.54808888]
[1772998623184,26.19735715,82.465,82.42,3.75963381]
[1772998624188,26.19735715,82.465,82.42,31.42820833]
[1772998624579,26.19735715,82.479,82.431,27.66857452]
[1772998624783,26.19735715,82.499,82.45,3.75963381]
[1772998625587,26.19735715,82.499,82.44,31.42820833]
[1772998625791,26.53397115,82.489,82.44,31.42820833]
[1772998626191,26.53397115,82.479,82.43,3.75963381]
[1772998627695,26.53397115,82.499,82.45,3.75963381]
[1772998628795,26.53397115,82.496,82.45,3.75963381]
[1772998629793,26.53397115,82.492,82.45,3.75963381]
[1772998631193,26.53397115,82.49,82.45,3.75963381]
[1772998633394,26.53397115,82.485,82.44,3.75963381]
[1772998633694,26.53397115,82.485,82.44,3.76387794]
[1772998634898,26.53397115,82.479,82.44,3.76387794]
[1772998635999,37.44397115,82.491,82.451,27.55754554]
[1772998639096,26.53397115,82.491,82.46,3.76387794]
[1772998639595,26.53397115,82.491,82.451,27.55754554]
[1772998645002,26.53397115,82.504,82.47,3.76387794]
[1772998645301,26.53397115,82.499,82.45,3.76387794]
[1772998645802,26.53397115,82.497,82.45,31.32142348]
[1772998645991,26.53397115,82.497,82.46,3.76387794]
[1772998646400,26.53397115,82.495,82.45,31.32142348]
[1772998647806,10.91,82.493,82.45,31.32142348]
[1772998648101,26.53397115,82.492,82.45,31.32142348]
[1772998651104,26.53397115,82.492,82.46,3.76387794]
[1772998652702,26.53397115,82.492,82.45,31.32142348]
[1772998652904,27.16952641,82.505,82.47,3.76387794]
[1772998653097,27.16952641,82.519,82.47,33.57001107]
[1772998653297,27.16952641,82.519,82.481,29.80613313]
[1772998655097,27.16952641,82.519,82.48,3.76387794]
[1772998655893,27.16952641,82.517,82.47,33.57001107]
[1772998656298,27.16952641,82.517,82.481,29.80613313]
[1772998656699,27.16952641,82.517,82.461,29.80613313]
[1772998657705,27.16952641,82.517,82.47,3.76387794]
[1772998657902,10.908,82.512,82.47,3.76387794]
[1772998658107,27.16952641,82.511,82.461,29.80613313]
[1772998658306,27.16952641,82.511,82.47,3.76387794]
[1772998660998,29.0899553,82.532,82.481,29.80613313]
[1772998661302,29.0899553,82.532,82.419,12.13]
[1772998661303,27.16952641,82.519,82.47,3.76387794]
[1772998664309,27.16952641,82.511,82.461,29.80613313]
[1772998664606,27.16952641,82.509,82.461,29.80613313]
[1772998667107,27.16952641,82.519,82.471,29.80613313]
[1772998668107,27.16952641,82.517,82.471,29.80613313]
[1772998670502,27.16952641,82.517,82.48,33.57001107]
[1772998670708,27.16952641,82.541,82.491,29.80613313]
[1772998670906,27.16952641,82.539,82.491,29.80613313]
[1772998671109,30.93340435,82.53,82.491,29.80613313]
[1772998672500,3.76387794,82.53,82.491,29.80613313]
[1772998672809,38.07352641,82.537,82.491,29.80613313]
[1772998673210,27.16952641,82.536,82.491,29.80613313]
[1772998680613,27.16952641,82.536,82.481,29.80613313]
[1772998680814,27.16952641,82.529,82.481,29.80613313]
[1772998681121,27.16952641,82.519,82.47,3.76387794]
[1772998681819,27.16952641,82.509,82.46,3.76387794]
[1772998682019,27.16952641,82.509,82.457,29.80613313]
[1772998683113,27.16952641,82.509,82.46,34.06276962]
[1772998684220,29.23888747,82.508,82.46,30.29889168]
[1772998684422,29.23888747,82.499,82.45,34.06276962]
[1772998684616,29.23888747,82.499,82.45,30.29889168]
[1772998684920,29.23888747,82.499,82.45,34.06276962]
[1772998685514,15.06779044,82.553,82.415,273.85485205]
[1772998685515,33.60241607,82.51,82.461,27.88572682]
[1772998685714,29.83853813,82.499,82.461,27.88572682]
[1772998687022,29.83853813,82.499,82.441,27.88572682]
[1772998687320,29.83853813,82.499,82.451,27.88572682]
[1772998694420,29.83853813,82.498,82.451,27.88572682]
[1772998694821,29.83853813,82.489,82.435,27.88572682]
[1772998695918,29.83853813,82.479,82.435,27.88572682]
[1772998698417,29.83853813,82.479,82.426,10.919]
[1772998698418,29.83853813,82.509,82.46,31.64812719]
[1772998698916,29.83853813,82.507,82.46,31.64812719]
[1772998699624,29.83853813,82.507,82.46,27.88572682]
[1772998701128,29.83853813,82.507,82.452,38.80072682]
[1772998701422,29.83853813,82.507,82.453,27.88572682]
[1772998701618,29.83853813,82.507,82.46,3.76240037]
[1772998701822,29.83853813,82.518,82.471,27.88572682]
[1772998702019,29.83853813,82.518,82.48,3.76240037]
[1772998702219,29.83853813,82.518,82.48,14.67440037]
[1772998702424,29.83853813,82.533,82.49,3.76240037]
[1772998702817,221.92269877,82.532,82.49,31.64812719]
[1772998703728,29.83853813,82.531,82.49,3.76240037]
[1772998704527,29.83853813,82.531,82.481,27.88572682]
[1772998705528,29.83853813,82.531,82.49,3.76240037]
[1772998707335,29.83853813,82.529,82.48,31.64812719]
[1772998707931,29.83853813,82.509,82.46,3.76240037]
[1772998708934,29.83853813,82.489,82.44,3.76240037]
[1772998709132,3.76240037,82.5,82.451,27.88572682]
[1772998709632,29.83853813,82.499,82.451,27.88572682]
[1772998710837,3.76240037,82.49,82.451,27.88572682]
[1772998712040,29.83853813,82.499,82.451,27.88572682]
[1772998713739,3.76240037,82.49,82.451,27.88572682]
[1772998715139,32.58908671,82.49,82.451,27.88572682]
[1772998715939,3.76240037,82.49,82.451,27.88572682]
[1772998716140,32.58908671,82.49,82.451,27.88572682]
[1772998722245,32.58908671,82.48,82.44,29.63423474]
[1772998723437,28.82668634,82.48,82.44,29.63423474]
[1772998724444,32.58908671,82.48,82.44,29.63423474]
[1772998724840,39.73868634,82.478,82.44,29.63423474]
[1772998725251,28.82668634,82.478,82.44,29.63423474]
[1772998726347,10.911,82.486,82.44,29.63423474]
[1772998726750,39.73768634,82.486,82.44,29.63423474]
[1772998726947,28.82668634,82.485,82.44,29.63423474]
[1772998728955,28.82668634,82.485,82.442,29.63423474]
[1772998730155,39.73768634,82.484,82.442,29.63423474]
[1772998730356,3.76240037,82.48,82.442,29.63423474]
[1772998732059,28.82668634,82.526,82.451,29.63423474]
[1772998732353,3.76240037,82.5,82.451,29.63423474]
[1772998732553,32.58908671,82.5,82.451,29.63423474]
[1772998732748,32.58908671,82.5,82.454,10.915]
[1772998732948,32.58908671,82.5,82.455,29.63423474]
[1772998736454,3.76240037,82.5,82.455,29.63423474]
[1772998736661,28.82668634,82.514,82.471,29.63423474]
[1772998740565,28.82668634,82.489,82.449,29.63423474]
[1772998741270,32.58908671,82.47,82.431,29.63423474]
[1772998741469,3.76240037,82.46,82.419,29.63423474]
[1772998741667,32.58908671,82.46,82.419,29.63423474]
[1772998742470,28.82668634,82.473,82.421,29.63423474]
[1772998742671,3.76240037,82.48,82.431,29.63423474]
[1772998744166,30.4519966,82.469,82.421,31.6322802]
[1772998750872,29.53316585,82.459,82.421,31.6322802]
[1772998753171,29.53316585,82.462,82.414,30.21097429]
[1772998753376,3.76240037,82.46,82.414,30.21097429]
[1772998753565,29.53316585,82.459,82.414,30.21097429]
[1772998754876,40.44816585,82.457,82.414,30.21097429]
[1772998755571,29.53316585,82.449,82.406,30.21097429]
[1772998756276,3.7662195,82.46,82.406,30.21097429]
[1772998756476,33.29938535,82.46,82.411,30.21097429]
[1772998759777,33.29938535,82.46,82.413,30.21097429]
[1772998760172,29.53316585,82.458,82.413,30.21097429]
[1772998760679,29.53316585,82.449,82.401,30.21097429]
[1772998760879,29.53316585,82.439,82.39,30.21097429]
[1772998761982,29.53316585,82.452,82.401,30.21097429]
[1772998762778,29.53316585,82.452,82.402,30.21097429]
[1772998763177,29.53316585,82.463,82.411,30.21097429]
[1772998763576,29.53316585,82.463,82.412,30.21097429]
[1772998763977,33.29938535,82.46,82.412,30.21097429]
[1772998765377,29.53316585,82.458,82.412,30.21097429]
[1772998765580,29.53316585,82.449,82.399,30.21097429]
[1772998766783,29.53316585,82.447,82.399,30.21097429]
[1772998768580,29.53316585,82.447,82.401,30.21097429]
[1772998769174,29.53316585,82.436,82.394,30.21097429]
[1772998769387,29.53316585,82.448,82.401,30.21097429]
[1772998770282,29.53316585,82.436,82.387,30.21097429]
[1772998770680,29.53316585,82.436,82.391,30.21097429]
[1772998770874,3.7662195,82.44,82.393,30.21097429]
[1772998771080,29.53316585,82.451,82.411,30.21097429]
[1772998771882,10.916,82.449,82.411,30.21097429]
[1772998772083,29.53316585,82.448,82.411,30.21097429]
[1772998772584,29.53316585,82.445,82.4,3.7662195]
[1772998773080,29.53316585,82.445,82.399,30.21097429]
[1772998773287,31.29710735,82.439,82.399,30.21097429]
[1772998774386,3.7662195,82.45,82.4,3.7662195]
[1772998774587,3.7662195,82.45,82.401,28.35528801]
[1772998774779,35.06332685,82.45,82.401,28.35528801]
[1772998775380,35.06332685,82.44,82.401,28.35528801]
[1772998775986,35.06332685,82.44,82.39,3.7662195]
[1772998776179,35.06332685,82.44,82.389,28.35528801]
[1772998777488,31.29710735,82.429,82.389,28.35528801]
[1772998777687,31.29710735,82.429,82.38,3.7662195]
[1772998777887,31.29710735,82.429,82.38,32.12150751]
[1772998778784,10.919,82.428,82.38,32.12150751]
[1772998779586,31.29710735,82.427,82.38,32.12150751]
[1772998780683,10.919,82.428,82.38,32.12150751]
[1772998780885,31.29710735,82.44,82.401,28.35528801]
[1772998782081,31.29710735,82.454,82.411,28.35528801]
[1772998782680,10.915,82.453,82.411,28.35528801]
[1772998783385,10.914,82.463,82.421,28.35528801]
[1772998783585,31.29710735,82.467,82.421,28.35528801]
[1772998786292,311.0774688,82.473,82.431,28.35528801]
[1772998786587,31.29710735,82.479,82.431,28.35528801]
[1772998787188,31.29710735,82.469,82.418,28.35528801]
[1772998787584,10.915,82.457,82.41,3.7662195]
[1772998787787,10.915,82.457,82.406,28.35528801]
[1772998787788,31.29710735,82.456,82.406,28.35528801]
[1772998788389,31.29710735,82.456,82.411,28.35528801]
[1772998792892,15.06779044,82.51,82.399,455.67504742]
[1772998792893,3.7662195,82.48,82.431,28.35528801]
[1772998793485,31.29710735,82.482,82.44,3.7662195]
[1772998793686,31.29710735,82.482,82.44,32.12150751]
[1772998794600,31.29710735,82.482,82.44,28.35528801]
[1772998796200,31.29710735,82.495,82.45,3.7662195]
[1772998797090,31.29710735,82.489,82.44,32.12150751]
[1772998797295,31.29710735,82.526,82.45,3.7662195]
[1772998797489,31.29710735,82.519,82.47,3.7662195]
[1772998798496,31.29710735,82.519,82.472,28.35528801]
[1772998798697,31.29710735,82.519,82.48,3.7662195]
[1772998800696,31.29710735,82.519,82.46,3.7662195]
[1772998800895,31.29710735,82.489,82.44,3.7662195]
[1772998801202,35.06332685,82.48,82.433,28.35528801]
[1772998801696,31.29710735,82.459,82.414,28.35528801]
[1772998801995,35.06332685,82.47,82.421,28.35528801]
[1772998802201,3.7662195,82.46,82.421,28.35528801]
[1772998802701,3.7662195,82.46,82.41,3.7662195]
[1772998802702,35.06332685,82.46,82.41,3.7662195]
[1772998802904,34.65199369,82.45,82.407,28.35528801]
[1772998803103,30.88577419,82.45,82.407,28.35528801]
[1772998804005,14.6812195,82.46,82.411,29.59042122]
[1772998805804,30.88577419,82.464,82.42,32.54718869]
[1772998806004,30.07188846,82.485,82.431,28.78096919]
[1772998806200,30.07188846,82.485,82.44,3.7662195]
[1772998806399,3.7662195,82.48,82.431,28.78096919]
[1772998806595,33.83810796,82.48,82.431,28.78096919]
[1772998808505,30.07188846,82.48,82.431,28.78096919]
[1772998808800,30.07188846,82.477,82.431,28.78096919]
[1772998811995,30.07188846,82.477,82.43,3.7662195]
[1772998811996,30.07188846,82.475,82.42,3.7662195]
[1772998812903,30.07188846,82.469,82.42,3.7662195]
[1772998813307,30.07188846,82.459,82.41,3.7662195]
[1772998813499,21.815,82.516,82.421,28.78096919]
[1772998813500,30.07188846,82.469,82.421,28.78096919]
[1772998814107,30.07188846,82.483,82.441,28.78096919]
[1772998814306,30.07188846,82.479,82.429,28.78096919]
[1772998814611,30.07188846,82.469,82.42,3.7662195]
[1772998815002,30.07188846,82.464,82.42,3.7662195]
[1772998815608,30.07188846,82.464,82.42,3.76518256]
[1772998818512,30.07188846,82.464,82.43,3.76518256]
[1772998819613,30.07188846,82.464,82.42,32.54615175]
[1772998820412,30.07188846,82.48,82.44,3.76518256]
[1772998822919,30.07188846,82.48,82.44,32.54615175]
[1772998824418,15.06779044,82.54,82.44,32.54615175]
[1772998824419,10.911,82.488,82.44,32.54615175]
[1772998825013,40.98288846,82.488,82.44,32.54615175]
[1772998825222,30.07188846,82.487,82.44,32.54615175]
[1772998831927,10.91,82.496,82.46,3.76518256]
[1772998832321,30.07188846,82.495,82.46,3.76518256]
[1772998832517,40.98188846,82.494,82.451,28.78096919]
[1772998833225,28.60233939,82.493,82.451,28.78096919]
[1772998835129,28.60233939,82.489,82.44,32.99638225]
[1772998837031,39.51333939,82.487,82.44,32.99638225]
[1772998838730,28.60233939,82.486,82.44,32.99638225]
[1772998839526,10.911,82.483,82.44,32.99638225]
[1772998839732,28.60233939,82.482,82.44,32.99638225]
[1772998848038,28.60233939,82.482,82.444,29.23119969]
[1772998849135,10.913,82.474,82.432,29.23119969]
[1772998849342,28.60233939,82.469,82.42,32.99638225]
[1772998850839,28.60233939,82.465,82.422,29.23119969]
[1772998856638,28.60233939,82.477,82.431,29.23119969]
[1772998857240,28.60233939,82.477,82.43,3.76518256]
[1772998857438,28.60233939,82.469,82.421,29.23119969]
[1772998857645,28.60233939,82.469,82.43,3.76518256]
[1772998862147,28.60233939,82.469,82.423,29.23119969]
[1772998863236,28.60233939,82.469,82.43,3.76518256]
[1772998863642,28.60233939,82.469,82.43,32.29203969]
[1772998865247,28.60233939,82.469,82.43,28.52685713]
[1772998865447,28.60233939,82.469,82.43,32.29203969]
[1772998865646,10.912,82.478,82.44,31.33900529]
[1772998865851,29.08488989,82.477,82.44,31.33900529]
[1772998866046,10.913,82.475,82.44,27.57382273]
[1772998866250,29.08488989,82.474,82.44,27.57382273]
[1772998867448,29.08488989,82.486,82.45,3.76518256]
[1772998868649,29.08488989,82.497,82.46,31.33900529]
[1772998868850,29.08488989,82.519,82.48,3.76518256]
[1772998869949,29.08488989,82.519,82.457,27.57382273]
[1772998870152,29.08488989,82.519,82.47,3.76518256]
[1772998871355,208.39291405,82.53,82.402,12.13]
[1772998871356,29.08488989,82.509,82.46,3.76518256]
[1772998871757,29.08488989,82.509,82.45,3.76518256]
[1772998872354,29.08488989,82.509,82.46,3.76518256]
[1772998872752,29.08488989,82.496,82.46,3.76518256]
[1772998875252,29.08488989,82.52,82.48,3.76518256]
[1772998877557,29.08488989,82.52,82.48,3.75960335]
[1772998886462,10.907,82.515,82.48,3.75960335]
[1772998886762,29.08488989,82.509,82.47,31.33342608]
[1772998889260,29.08488989,82.507,82.47,31.33342608]
[1772998890961,208.39291405,82.53,82.47,31.33342608]
[1772998890962,212.1525174,82.53,82.47,31.33342608]
[1772998891167,212.1525174,82.53,82.412,21.842]
[1772998891168,29.08488989,82.524,82.481,27.57382273]
[1772998891359,29.08488989,82.519,82.47,3.75960335]
[1772998891565,29.08488989,82.519,82.461,27.57382273]
[1772998892868,27.55958141,82.513,82.461,27.57382273]
[1772998893865,27.55958141,82.511,82.461,27.57382273]
[1772998896265,27.55958141,82.508,82.461,27.57382273]
[1772998896871,10.908,82.507,82.461,27.57382273]
[1772998897068,27.55958141,82.506,82.461,27.57382273]
[1772998898768,27.55958141,82.502,82.461,27.57382273]
[1772998899673,27.55958141,82.502,82.47,3.75960335]
[1772998899873,10.909,82.498,82.47,3.75960335]
[1772998902269,27.55958141,82.502,82.47,3.75960335]
[1772998903378,38.46858141,82.502,82.47,3.75960335]
[1772998904676,38.46858141,82.502,82.461,27.57382273]
[1772998905979,38.46858141,82.502,82.47,3.75960335]
[1772998907180,27.55958141,82.502,82.47,3.75960335]
[1772998907579,27.55958141,82.502,82.47,32.38155317]
[1772998909781,27.55958141,82.512,82.474,28.62194982]
[1772998916293,27.55958141,82.509,82.461,28.62194982]
[1772998917893,27.55958141,82.509,82.469,10.913]
[1772998919792,27.55958141,82.509,82.461,28.62194982]
[1772998921800,27.55958141,82.509,82.466,10.914]
[1772998922299,27.55958141,82.509,82.461,28.62194982]
[1772998922795,27.55958141,82.509,82.456,10.915]
[1772998922994,26.4706007,82.499,82.452,26.75521791]
[1772998923499,26.4706007,82.499,82.46,3.75960335]
[1772998923698,26.4706007,82.499,82.46,30.51482126]
[1772998924193,26.4706007,82.499,82.46,26.75521791]
[1772998927400,27.71826798,82.497,82.46,26.75521791]
[1772998933095,27.71826798,82.497,82.46,30.51482126]
[1772998934097,27.71826798,82.509,82.46,30.51482126]
[1772998934404,27.71826798,82.524,82.491,25.97142792]
[1772998936802,10.905,82.532,82.491,25.97142792]
[1772998938004,27.71826798,82.531,82.491,25.97142792]
[1772998940112,27.71826798,82.549,82.501,25.97142792]
[1772998940810,27.71826798,82.546,82.501,25.97142792]
[1772998941899,27.71826798,82.541,82.501,25.97142792]
[1772998951818,27.71826798,82.539,82.49,3.7583081]
[1772998952319,27.71826798,82.538,82.491,25.97142792]
[1772998953822,26.00381762,82.536,82.491,25.97142792]
[1772998954823,26.00381762,82.534,82.491,25.97142792]
[1772998955626,10.905,82.531,82.491,25.97142792]
[1772998955823,26.00381762,82.53,82.491,25.97142792]
[1772998956925,10.905,82.529,82.491,25.97142792]
[1772998963529,26.00381762,82.526,82.491,25.97142792]
[1772998965032,10.906,82.524,82.491,25.97142792]
[1772998969739,26.00381762,82.526,82.491,25.97142792]
[1772998971838,10.905,82.532,82.5,29.21082084]
[1772998972244,26.00381762,82.535,82.5,29.21082084]
[1772998973441,26.00381762,82.533,82.5,25.45251274]
[1772998977943,26.00381762,82.53,82.5,25.45251274]
[1772998980548,26.00381762,82.528,82.48,3.7583081]
[1772998981048,26.00381762,82.528,82.49,3.7583081]
[1772998982752,26.00381762,82.528,82.491,25.45251274]
[1772998983056,27.01372099,82.537,82.501,26.3872968]
[1772998984251,10.903,82.544,82.501,26.3872968]
[1772998984554,10.904,82.542,82.501,26.3872968]
[1772998984752,27.01372099,82.558,82.521,26.3872968]
[1772998984952,27.01372099,82.558,82.521,20.3307857]
[1772998985147,26.72078281,82.549,82.462,933.61191769]
[1772998985451,26.72078281,82.549,82.5,3.7583081]
[1772998986052,26.72078281,82.549,82.49,3.7583081]
[1772998986952,26.72078281,82.543,82.491,26.30617864]
[1772998987756,26.72078281,82.541,82.491,26.30617864]
[1772998988253,26.72078281,82.539,82.491,26.30617864]
[1772998988456,26.72078281,82.527,82.491,26.30617864]
[1772998991862,26.72078281,82.526,82.491,26.30617864]
[1772998992065,26.72078281,82.526,82.48,3.7583081]
[1772998992361,26.72078281,82.524,82.48,3.7583081]
[1772998994260,26.72078281,82.524,82.481,26.30617864]
[1772998994460,26.72078281,82.524,82.481,37.21817864]
[1772998994660,26.72078281,82.524,82.49,30.06448674]
[1772998999563,26.72078281,82.524,82.49,30.06532068]
[1772999000757,26.72078281,82.524,82.481,10.912]
[1772999000758,26.72078281,82.524,82.48,30.06532068]
[1772999001762,26.72078281,82.522,82.48,30.06532068]
[1772999003866,26.72078281,82.52,82.48,30.06532068]
[1772999005768,10.907,82.518,82.48,30.06532068]
[1772999006068,26.72078281,82.517,82.48,30.06532068]
[1772999006767,10.907,82.516,82.48,30.06532068]
[1772999006965,26.72078281,82.515,82.48,30.06532068]
[1772999008867,26.72078281,82.515,82.48,26.30617864]
[1772999009668,26.72078281,82.515,82.48,30.06532068]
[1772999011570,26.72078281,82.513,82.48,30.06532068]
[1772999013768,30.22729761,82.51,82.462,933.61191769]
[1772999013961,26.46815557,82.51,82.463,25.7229235]
[1772999014162,26.46815557,82.51,82.474,10.912]
[1772999014367,26.46815557,82.518,82.481,25.7229235]
[1772999014969,15.06779044,82.557,82.462,933.61191769]
[1772999014970,26.46815557,82.535,82.49,29.48206554]
[1772999017879,26.46815557,82.535,82.5,3.75914204]
[1772999018472,26.46815557,82.535,82.5,29.48206554]
[1772999018669,26.46815557,82.529,82.481,25.7229235]
[1772999018977,26.46815557,82.529,82.491,25.7229235]
[1772999028477,26.46815557,82.528,82.491,25.7229235]
[1772999029877,10.906,82.525,82.491,25.7229235]
[1772999030777,26.46815557,82.524,82.491,25.7229235]
[1772999040894,26.46815557,82.524,82.48,3.75914204]
[1772999041794,26.46815557,82.522,82.48,3.75914204]
[1772999041993,26.46815557,82.522,82.48,29.48206554]
[1772999042788,27.73841413,82.528,82.49,31.24918327]
[1772999043795,38.64441413,82.528,82.49,31.24918327]
[1772999043990,27.73841413,82.527,82.49,31.24918327]
[1772999049500,26.06200175,82.517,82.465,26.26645161]
[1772999049701,26.06200175,82.517,82.471,26.26645161]
[1772999050198,26.06200175,82.515,82.471,26.26645161]
[1772999050792,26.06200175,82.513,82.471,26.26645161]
[1772999052601,26.06200175,82.525,82.49,3.75914204]
[1772999055197,26.06200175,82.523,82.471,26.26645161]
[1772999055497,26.06200175,82.523,82.48,3.75914204]
[1772999055701,26.06200175,82.523,82.471,26.26645161]
[1772999056102,3.75914204,82.53,82.471,26.26645161]
[1772999056103,26.06200175,82.519,82.471,26.26645161]
[1772999057500,26.06200175,82.509,82.471,26.26645161]
[1772999059107,10.908,82.51,82.459,10.914]
[1772999059108,26.06200175,82.506,82.46,30.02559365]
[1772999061608,26.06200175,82.506,82.46,30.02810743]
[1772999063908,26.06200175,82.515,82.465,26.26645161]
[1772999064098,26.06200175,82.515,82.471,26.26645161]
[1772999064408,26.06200175,82.515,82.474,26.26645161]
[1772999064601,26.06200175,82.515,82.48,30.02810743]
[1772999065207,26.06200175,82.527,82.484,26.26645161]
[1772999065401,26.06200175,82.527,82.491,26.26645161]
[1772999065602,26.06200175,82.527,82.458,947.61926651]
[1772999065603,26.06200175,82.527,82.459,26.26645161]
[1772999065802,26.06200175,82.527,82.458,947.61926651]
[1772999065803,26.06200175,82.527,82.471,26.26645161]
[1772999066906,26.06200175,82.517,82.471,26.26645161]
[1772999072710,10.906,82.526,82.481,26.29639408]
[1772999072917,10.906,82.526,82.491,26.29639408]
[1772999073109,26.16043194,82.525,82.459,26.29639408]
[1772999073313,26.16043194,82.525,82.48,30.0580499]
[1772999074914,10.906,82.523,82.482,26.29639408]